[Event "Titled Tuesday Blitz June 6 Late 2023"]
[White "Martic, Ivan"]
[Black "Matlakov, Maxim"]
[WhiteFideId "929301"]
[BlackFideId "4168003"]
[WhiteElo "2346"]
[BlackElo "2666"]
[Result "0-1"]
[Round "3"]
[TimeControl "180+2"]
[Date "2023.06.07"]
[WhiteClock "0:00:01"]
[BlackClock "0:00:19"]
[Board "38"]

1. e4 {[%clk 0:03:00]}  c5 {[%clk 0:02:59]} 2. Nf3 {[%clk 0:03:00]}  e6 {[%clk 0:02:59]} 3. d4 {[%clk 0:03:01]}  cxd4 {[%clk 0:03:00]} 4. Nxd4 {[%clk 0:03:01]}  Nc6 {[%clk 0:03:01]} 5. Nc3 {[%clk 0:03:01]}  Qc7 {[%clk 0:03:00]} 6. Ndb5 {[%clk 0:02:57]}  Qb8 {[%clk 0:03:00]} 7. Be3 {[%clk 0:02:57]}  a6 {[%clk 0:02:58]} 8. Bb6 {[%clk 0:02:57]}  axb5 {[%clk 0:02:59]} 9. Nxb5 {[%clk 0:02:58]}  Bb4+ {[%clk 0:02:59]} 10. c3 {[%clk 0:02:58]}  Ba5 {[%clk 0:02:59]} 11. Nc7+ {[%clk 0:02:59]}  Qxc7 {[%clk 0:03:00]} 12. Bxc7 {[%clk 0:03:00]}  Bxc7 {[%clk 0:03:00]} 13. Qg4 {[%clk 0:02:57]}  g6 {[%clk 0:02:57]} 14. Bb5 {[%clk 0:02:57]}  Nf6 {[%clk 0:02:55]} 15. Qe2 {[%clk 0:02:57]}  O-O {[%clk 0:02:53]} 16. O-O {[%clk 0:02:56]}  b6 {[%clk 0:02:51]} 17. a4 {[%clk 0:02:55]}  Bb7 {[%clk 0:02:50]} 18. f3 {[%clk 0:02:51]}  d5 {[%clk 0:02:49]} 19. b4 {[%clk 0:02:46]}  dxe4 {[%clk 0:02:44]} 20. fxe4 {[%clk 0:02:46]}  Be5 {[%clk 0:02:42]} 21. Rac1 {[%clk 0:02:43]}  Rac8 {[%clk 0:02:37]} 22. Kh1 {[%clk 0:02:31]}  Kg7 {[%clk 0:02:36]} 23. Qe3 {[%clk 0:02:21]}  Bc7 {[%clk 0:01:24]} 24. c4 {[%clk 0:01:31]}  Ne5 {[%clk 0:01:20]} 25. c5 {[%clk 0:01:22]}  Neg4 {[%clk 0:01:18]} 26. Qe2 {[%clk 0:01:06]}  bxc5 {[%clk 0:01:14]} 27. Rxc5 {[%clk 0:01:00]}  Bb6 {[%clk 0:01:12]} 28. Rxc8 {[%clk 0:00:41]}  Rxc8 {[%clk 0:01:13]} 29. a5 {[%clk 0:00:36]}  Nf2+ {[%clk 0:00:32]} 30. Kg1 {[%clk 0:00:25]}  Nh3+ {[%clk 0:00:31]} 31. Kh1 {[%clk 0:00:25]}  Nf2+ {[%clk 0:00:32]} 32. Kg1 {[%clk 0:00:25]}  Ba7 {[%clk 0:00:31]} 33. h3 {[%clk 0:00:19]}  N6xe4 {[%clk 0:00:30]} 34. Kh2 {[%clk 0:00:16]}  Bb8+ {[%clk 0:00:29]} 35. Kg1 {[%clk 0:00:16]}  Ba7 {[%clk 0:00:29]} 36. Kh2 {[%clk 0:00:16]}  Rc3 {[%clk 0:00:27]} 37. Qb2 {[%clk 0:00:15]}  Bd4 {[%clk 0:00:26]} 38. Qe2 {[%clk 0:00:12]}  Bd5 {[%clk 0:00:25]} 39. a6 {[%clk 0:00:11]}  Re3 {[%clk 0:00:24]} 40. Qxe3 {[%clk 0:00:07]}  Bxe3 {[%clk 0:00:25]} 41. Re1 {[%clk 0:00:07]}  Bb6 {[%clk 0:00:24]} 42. Rc1 {[%clk 0:00:05]}  Be3 {[%clk 0:00:20]} 43. Rc8 {[%clk 0:00:03]}  Nd6 {[%clk 0:00:20]} 44. Rc3 {[%clk 0:00:01]}  Bf4+ {[%clk 0:00:19]} 45. g3 {[%clk 0:00:01]}  Nxb5 {[%clk 0:00:19]} 0-1


[Site "https://www.chess.com"]

[Event "Titled Tuesday Blitz June 6 Late 2023"]
[White "Garcia, Erick"]
[Black "Babazada, Khazar"]
[WhiteFideId "2058880"]
[BlackFideId "13413554"]
[WhiteElo "2202"]
[BlackElo "2369"]
[Result "1-0"]
[Round "3"]
[TimeControl "180+2"]
[Date "2023.06.07"]
[WhiteClock "0:01:00"]
[BlackClock "0:00:01"]
[Board "39"]

1. d4 {[%clk 0:03:00]}  Nf6 {[%clk 0:02:50]} 2. c4 {[%clk 0:03:00]}  e6 {[%clk 0:02:46]} 3. g3 {[%clk 0:03:00]}  d5 {[%clk 0:02:46]} 4. Bg2 {[%clk 0:03:00]}  dxc4 {[%clk 0:02:46]} 5. Nf3 {[%clk 0:03:00]}  c5 {[%clk 0:02:45]} 6. O-O {[%clk 0:02:55]}  Nc6 {[%clk 0:02:28]} 7. dxc5 {[%clk 0:02:55]}  Qxd1 {[%clk 0:02:21]} 8. Rxd1 {[%clk 0:02:55]}  Bxc5 {[%clk 0:02:22]} 9. Nbd2 {[%clk 0:02:55]}  c3 {[%clk 0:02:20]} 10. bxc3 {[%clk 0:02:55]}  O-O {[%clk 0:02:20]} 11. Nb3 {[%clk 0:02:56]}  Be7 {[%clk 0:02:20]} 12. c4 {[%clk 0:02:56]}  Bd7 {[%clk 0:02:16]} 13. Bb2 {[%clk 0:02:54]}  Rfd8 {[%clk 0:02:16]} 14. Nfd4 {[%clk 0:02:51]}  Rac8 {[%clk 0:02:13]} 15. Nb5 {[%clk 0:02:48]}  a6 {[%clk 0:02:03]} 16. Nd6 {[%clk 0:02:47]}  Bxd6 {[%clk 0:01:57]} 17. Rxd6 {[%clk 0:02:48]}  Nb8 {[%clk 0:01:41]} 18. Bxf6 {[%clk 0:02:38]}  gxf6 {[%clk 0:01:40]} 19. Bxb7 {[%clk 0:02:38]}  Rxc4 {[%clk 0:01:39]} 20. Rad1 {[%clk 0:02:37]}  Kf8 {[%clk 0:01:30]} 21. Bxa6 {[%clk 0:02:36]}  Nxa6 {[%clk 0:01:13]} 22. Rxa6 {[%clk 0:02:34]}  Rc7 {[%clk 0:01:14]} 23. Rad6 {[%clk 0:02:34]}  Ke7 {[%clk 0:01:13]} 24. f3 {[%clk 0:02:32]}  Ra8 {[%clk 0:01:11]} 25. R6d2 {[%clk 0:02:30]}  Ba4 {[%clk 0:01:07]} 26. Kf2 {[%clk 0:02:29]}  h5 {[%clk 0:00:56]} 27. h4 {[%clk 0:02:27]}  f5 {[%clk 0:00:51]} 28. Rb1 {[%clk 0:02:25]}  Rb7 {[%clk 0:00:49]} 29. Rc2 {[%clk 0:02:17]}  Rab8 {[%clk 0:00:46]} 30. Rc3 {[%clk 0:02:17]}  Rb6 {[%clk 0:00:42]} 31. Rc7+ {[%clk 0:02:12]}  Kf6 {[%clk 0:00:41]} 32. Rc3 {[%clk 0:02:11]}  Bc6 {[%clk 0:00:42]} 33. Rbc1 {[%clk 0:02:09]}  Bd5 {[%clk 0:00:41]} 34. Nd4 {[%clk 0:02:00]}  Bxa2 {[%clk 0:00:37]} 35. f4 {[%clk 0:02:00]}  Bd5 {[%clk 0:00:36]} 36. Nf3 {[%clk 0:01:57]}  Rb2 {[%clk 0:00:29]} 37. Ne5 {[%clk 0:01:54]}  Kg7 {[%clk 0:00:15]} 38. Rc7 {[%clk 0:01:52]}  Rf8 {[%clk 0:00:16]} 39. Rd7 {[%clk 0:01:50]}  Rb7 {[%clk 0:00:16]} 40. Rcc7 {[%clk 0:01:46]}  Rxc7 {[%clk 0:00:16]} 41. Rxc7 {[%clk 0:01:47]}  Be4 {[%clk 0:00:14]} 42. Nd7 {[%clk 0:01:43]}  Re8 {[%clk 0:00:08]} 43. Nc5 {[%clk 0:01:44]}  Bd5 {[%clk 0:00:09]} 44. Ke3 {[%clk 0:01:42]}  Kf6 {[%clk 0:00:07]} 45. Nd7+ {[%clk 0:01:41]}  Kg7 {[%clk 0:00:07]} 46. Ne5 {[%clk 0:01:41]}  Rf8 {[%clk 0:00:08]} 47. Kd4 {[%clk 0:01:41]}  Be4 {[%clk 0:00:07]} 48. Kc5 {[%clk 0:01:41]}  Kg8 {[%clk 0:00:07]} 49. Kd6 {[%clk 0:01:40]}  f6 {[%clk 0:00:05]} 50. Nd7 {[%clk 0:01:38]}  Rf7 {[%clk 0:00:05]} 51. Kxe6 {[%clk 0:01:37]}  Kg7 {[%clk 0:00:06]} 52. Kd6 {[%clk 0:01:33]}  Kg6 {[%clk 0:00:06]} 53. Nc5 {[%clk 0:01:33]}  Rf8 {[%clk 0:00:05]} 54. Ne6 {[%clk 0:01:30]}  Ra8 {[%clk 0:00:04]} 55. Rg7+ {[%clk 0:01:30]}  Kh6 {[%clk 0:00:03]} 56. Rf7 {[%clk 0:01:30]}  Kg6 {[%clk 0:00:03]} 57. Rc7 {[%clk 0:01:23]}  Ra6+ {[%clk 0:00:02]} 58. Ke7 {[%clk 0:01:24]}  Bd5 {[%clk 0:00:02]} 59. Nf8+ {[%clk 0:01:13]}  Kh6 {[%clk 0:00:03]} 60. Rd7 {[%clk 0:01:06]}  Be4 {[%clk 0:00:03]} 61. Rd6 {[%clk 0:01:03]}  Ra5 {[%clk 0:00:02]} 62. Kxf6 {[%clk 0:01:02]}  Ra7 {[%clk 0:00:01]} 63. Rd7 {[%clk 0:01:00]}  Rxd7 {[%clk 0:00:01]} 1-0


[Site "https://www.chess.com"]

[Event "Titled Tuesday Blitz June 6 Late 2023"]
[White "Kuzhilniy, Oleksandr"]
[Black "Visakh N R"]
[WhiteFideId "34110500"]
[BlackFideId "25012223"]
[WhiteElo "2074"]
[BlackElo "2466"]
[Result "1-0"]
[Round "3"]
[TimeControl "180+2"]
[Date "2023.06.07"]
[WhiteClock "0:00:07"]
[BlackClock "0:00:37"]
[Board "41"]

1. b3 {[%clk 0:03:00]}  f5 {[%clk 0:02:52]} 2. Bb2 {[%clk 0:03:00]}  Nf6 {[%clk 0:02:53]} 3. c4 {[%clk 0:02:55]}  g6 {[%clk 0:02:53]} 4. g3 {[%clk 0:02:53]}  Bg7 {[%clk 0:02:53]} 5. Bg2 {[%clk 0:02:54]}  O-O {[%clk 0:02:53]} 6. Nh3 {[%clk 0:02:52]}  Qe8 {[%clk 0:02:49]} 7. d4 {[%clk 0:02:51]}  e5 {[%clk 0:02:42]} 8. dxe5 {[%clk 0:02:46]}  Ng4 {[%clk 0:02:42]} 9. O-O {[%clk 0:02:36]}  d6 {[%clk 0:02:41]} 10. Nc3 {[%clk 0:02:30]}  Bxe5 {[%clk 0:02:37]} 11. Qd2 {[%clk 0:02:28]}  Qe7 {[%clk 0:02:29]} 12. Nd5 {[%clk 0:02:26]}  Qg7 {[%clk 0:02:29]} 13. Bxe5 {[%clk 0:02:25]}  dxe5 {[%clk 0:02:30]} 14. Qa5 {[%clk 0:02:07]}  c6 {[%clk 0:02:16]} 15. Nb6 {[%clk 0:01:50]}  axb6 {[%clk 0:02:08]} 16. Qxa8 {[%clk 0:01:49]}  Na6 {[%clk 0:02:08]} 17. Qa7 {[%clk 0:01:45]}  Qc7 {[%clk 0:02:05]} 18. Rad1 {[%clk 0:01:23]}  Bd7 {[%clk 0:02:00]} 19. e3 {[%clk 0:01:03]}  e4 {[%clk 0:01:58]} 20. Rd2 {[%clk 0:00:59]}  Ne5 {[%clk 0:01:58]} 21. Rfd1 {[%clk 0:00:58]}  Nd3 {[%clk 0:01:56]} 22. Rxd3 {[%clk 0:00:58]}  exd3 {[%clk 0:01:56]} 23. Rxd3 {[%clk 0:00:59]}  Rd8 {[%clk 0:01:55]} 24. Nf4 {[%clk 0:00:56]}  Nc5 {[%clk 0:01:46]} 25. Rd1 {[%clk 0:00:54]}  Be8 {[%clk 0:01:46]} 26. Rxd8 {[%clk 0:00:53]}  Qxd8 {[%clk 0:01:47]} 27. Bf3 {[%clk 0:00:48]}  g5 {[%clk 0:01:45]} 28. Ne2 {[%clk 0:00:40]}  Qd1+ {[%clk 0:01:41]} 29. Kg2 {[%clk 0:00:32]}  g4 {[%clk 0:01:41]} 30. Ng1 {[%clk 0:00:17]}  gxf3+ {[%clk 0:01:40]} 31. Nxf3 {[%clk 0:00:17]}  Bh5 {[%clk 0:01:36]} 32. Nd4 {[%clk 0:00:17]}  Nd7 {[%clk 0:00:54]} 33. Qxb7 {[%clk 0:00:15]}  Nf6 {[%clk 0:00:52]} 34. Qxc6 {[%clk 0:00:14]}  Ne4 {[%clk 0:00:43]} 35. Qc8+ {[%clk 0:00:14]}  Kg7 {[%clk 0:00:43]} 36. Nxf5+ {[%clk 0:00:13]}  Kf6 {[%clk 0:00:42]} 37. Nd4 {[%clk 0:00:12]}  Bg6 {[%clk 0:00:42]} 38. Qc6+ {[%clk 0:00:10]}  Ke7 {[%clk 0:00:42]} 39. Qc7+ {[%clk 0:00:10]}  Ke8 {[%clk 0:00:42]} 40. Qc8+ {[%clk 0:00:09]}  Ke7 {[%clk 0:00:42]} 41. Qe6+ {[%clk 0:00:08]}  Kd8 {[%clk 0:00:41]} 42. Qxb6+ {[%clk 0:00:06]}  Kd7 {[%clk 0:00:42]} 43. Qc6+ {[%clk 0:00:06]}  Ke7 {[%clk 0:00:42]} 44. Qe6+ {[%clk 0:00:06]}  Kd8 {[%clk 0:00:43]} 45. c5 {[%clk 0:00:05]}  Nxc5 {[%clk 0:00:42]} 46. Qd6+ {[%clk 0:00:05]}  Ke8 {[%clk 0:00:42]} 47. Qxc5 {[%clk 0:00:05]}  Be4+ {[%clk 0:00:42]} 48. Kh3 {[%clk 0:00:04]}  Qf1+ {[%clk 0:00:40]} 49. Kh4 {[%clk 0:00:05]}  Qg2 {[%clk 0:00:40]} 50. Qe5+ {[%clk 0:00:05]}  Kd7 {[%clk 0:00:41]} 51. Qe6+ {[%clk 0:00:05]}  Kc7 {[%clk 0:00:41]} 52. Qe5+ {[%clk 0:00:05]}  Kd7 {[%clk 0:00:41]} 53. g4 {[%clk 0:00:06]}  Qxf2+ {[%clk 0:00:41]} 54. Qg3 {[%clk 0:00:06]}  Qf6+ {[%clk 0:00:40]} 55. g5 {[%clk 0:00:06]}  Qf1 {[%clk 0:00:38]} 56. Qh3+ {[%clk 0:00:06]}  Qxh3+ {[%clk 0:00:37]} 57. Kxh3 {[%clk 0:00:07]} 1-0


[Site "https://www.chess.com"]

[Event "Titled Tuesday Blitz June 6 Late 2023"]
[White "Prado Lobo, Jonas"]
[Black "Indjic, Aleksandar"]
[WhiteFideId "32050666"]
[BlackFideId "911925"]
[WhiteElo "2322"]
[BlackElo "2614"]
[Result "0-1"]
[Round "3"]
[TimeControl "180+2"]
[Date "2023.06.07"]
[WhiteClock "0:00:03"]
[BlackClock "0:01:28"]
[Board "42"]

1. d4 {[%clk 0:03:00]}  Nf6 {[%clk 0:02:58]} 2. Nf3 {[%clk 0:03:00]}  c5 {[%clk 0:02:59]} 3. e3 {[%clk 0:03:01]}  g6 {[%clk 0:02:59]} 4. Be2 {[%clk 0:03:00]}  Bg7 {[%clk 0:02:59]} 5. O-O {[%clk 0:03:01]}  O-O {[%clk 0:03:00]} 6. b3 {[%clk 0:03:01]}  b6 {[%clk 0:02:57]} 7. Bb2 {[%clk 0:03:00]}  Bb7 {[%clk 0:02:57]} 8. c4 {[%clk 0:03:00]}  cxd4 {[%clk 0:02:56]} 9. Nxd4 {[%clk 0:02:58]}  d6 {[%clk 0:02:56]} 10. Bf3 {[%clk 0:02:57]}  Qc8 {[%clk 0:02:55]} 11. Nc3 {[%clk 0:02:56]}  Re8 {[%clk 0:02:53]} 12. Rc1 {[%clk 0:02:55]}  Nbd7 {[%clk 0:02:53]} 13. Nd5 {[%clk 0:02:49]}  a6 {[%clk 0:02:52]} 14. Qe2 {[%clk 0:02:41]}  e6 {[%clk 0:02:51]} 15. Nxf6+ {[%clk 0:02:40]}  Nxf6 {[%clk 0:02:51]} 16. Rfd1 {[%clk 0:02:38]}  Rd8 {[%clk 0:02:51]} 17. Bxb7 {[%clk 0:02:37]}  Qxb7 {[%clk 0:02:49]} 18. Qf3 {[%clk 0:02:37]}  Ne4 {[%clk 0:02:46]} 19. Rc2 {[%clk 0:02:30]}  h5 {[%clk 0:02:34]} 20. Ne2 {[%clk 0:02:24]}  Bxb2 {[%clk 0:02:30]} 21. Rxb2 {[%clk 0:02:25]}  d5 {[%clk 0:02:30]} 22. Ng3 {[%clk 0:02:09]}  h4 {[%clk 0:02:27]} 23. Nxe4 {[%clk 0:02:05]}  dxe4 {[%clk 0:02:28]} 24. Qg4 {[%clk 0:01:59]}  Rxd1+ {[%clk 0:02:24]} 25. Qxd1 {[%clk 0:02:00]}  b5 {[%clk 0:02:23]} 26. c5 {[%clk 0:01:51]}  b4 {[%clk 0:02:16]} 27. h3 {[%clk 0:01:48]}  a5 {[%clk 0:02:10]} 28. Qd6 {[%clk 0:01:42]}  Rc8 {[%clk 0:02:07]} 29. Rd2 {[%clk 0:01:36]}  Qc7 {[%clk 0:02:06]} 30. Qxc7 {[%clk 0:00:59]}  Rxc7 {[%clk 0:02:06]} 31. Rc2 {[%clk 0:00:59]}  Kg7 {[%clk 0:01:54]} 32. Rc4 {[%clk 0:00:58]}  f5 {[%clk 0:01:52]} 33. f3 {[%clk 0:00:57]}  exf3 {[%clk 0:01:52]} 34. gxf3 {[%clk 0:00:58]}  g5 {[%clk 0:01:51]} 35. f4 {[%clk 0:00:51]}  g4 {[%clk 0:01:50]} 36. hxg4 {[%clk 0:00:50]}  fxg4 {[%clk 0:01:51]} 37. e4 {[%clk 0:00:41]}  Kf6 {[%clk 0:01:50]} 38. Kf2 {[%clk 0:00:29]}  e5 {[%clk 0:01:50]} 39. f5 {[%clk 0:00:28]}  Rc6 {[%clk 0:01:47]} 40. Ke3 {[%clk 0:00:24]}  Kg5 {[%clk 0:01:46]} 41. Rc2 {[%clk 0:00:23]}  h3 {[%clk 0:01:45]} 42. Rc1 {[%clk 0:00:15]}  h2 {[%clk 0:01:31]} 43. Rh1 {[%clk 0:00:09]}  g3 {[%clk 0:01:32]} 44. Kf3 {[%clk 0:00:09]}  Kh4 {[%clk 0:01:32]} 45. Rf1 {[%clk 0:00:03]}  Kh3 {[%clk 0:01:28]} 0-1


[Site "https://www.chess.com"]

[Event "Titled Tuesday Blitz June 6 Late 2023"]
[White "Sieciechowicz, Marcin"]
[Black "Novikov, Evgenij"]
[WhiteFideId "1130170"]
[BlackFideId "4125380"]
[WhiteElo "2301"]
[BlackElo "2242"]
[Result "1-0"]
[Round "3"]
[TimeControl "180+2"]
[Date "2023.06.07"]
[WhiteClock "0:00:35"]
[BlackClock "0:00:03"]
[Board "46"]

1. d4 {[%clk 0:03:00]}  d5 {[%clk 0:02:59]} 2. Bf4 {[%clk 0:02:57]}  Nf6 {[%clk 0:02:58]} 3. e3 {[%clk 0:02:57]}  c5 {[%clk 0:02:57]} 4. c3 {[%clk 0:02:57]}  cxd4 {[%clk 0:02:57]} 5. exd4 {[%clk 0:02:57]}  Nc6 {[%clk 0:02:58]} 6. Nf3 {[%clk 0:02:57]}  g6 {[%clk 0:02:49]} 7. Bd3 {[%clk 0:02:57]}  Bg7 {[%clk 0:02:49]} 8. O-O {[%clk 0:02:57]}  O-O {[%clk 0:02:49]} 9. Nbd2 {[%clk 0:02:57]}  Bf5 {[%clk 0:02:46]} 10. Bxf5 {[%clk 0:02:57]}  gxf5 {[%clk 0:02:47]} 11. Re1 {[%clk 0:02:57]}  e6 {[%clk 0:02:46]} 12. h3 {[%clk 0:02:56]}  Kh8 {[%clk 0:02:45]} 13. Ne5 {[%clk 0:02:56]}  Nxe5 {[%clk 0:02:30]} 14. Bxe5 {[%clk 0:02:55]}  Ne8 {[%clk 0:02:30]} 15. Nf3 {[%clk 0:02:55]}  Bxe5 {[%clk 0:02:28]} 16. Nxe5 {[%clk 0:02:53]}  Qg5 {[%clk 0:02:23]} 17. Re3 {[%clk 0:02:36]}  f4 {[%clk 0:02:08]} 18. Re1 {[%clk 0:02:25]}  Nd6 {[%clk 0:02:03]} 19. Qg4 {[%clk 0:02:23]}  Qxg4 {[%clk 0:01:50]} 20. hxg4 {[%clk 0:02:24]}  Kg7 {[%clk 0:01:46]} 21. f3 {[%clk 0:02:21]}  f5 {[%clk 0:01:12]} 22. Nd7 {[%clk 0:01:57]}  Rfe8 {[%clk 0:01:08]} 23. gxf5 {[%clk 0:01:46]}  Nxf5 {[%clk 0:01:04]} 24. Kf2 {[%clk 0:01:46]}  b6 {[%clk 0:00:50]} 25. Ne5 {[%clk 0:01:38]}  h5 {[%clk 0:00:40]} 26. Nd3 {[%clk 0:01:36]}  Ne3 {[%clk 0:00:35]} 27. Nxf4 {[%clk 0:01:36]}  Nc2 {[%clk 0:00:34]} 28. Nxe6+ {[%clk 0:01:13]}  Kf6 {[%clk 0:00:25]} 29. Nc7 {[%clk 0:01:02]}  Rxe1 {[%clk 0:00:19]} 30. Rxe1 {[%clk 0:00:59]}  Nxe1 {[%clk 0:00:14]} 31. Nxa8 {[%clk 0:00:56]}  Nd3+ {[%clk 0:00:14]} 32. Ke3 {[%clk 0:00:56]}  Nxb2 {[%clk 0:00:15]} 33. Nc7 {[%clk 0:00:53]}  Nc4+ {[%clk 0:00:12]} 34. Kf4 {[%clk 0:00:51]}  Nd6 {[%clk 0:00:06]} 35. Nxd5+ {[%clk 0:00:51]}  Ke6 {[%clk 0:00:07]} 36. Ne3 {[%clk 0:00:51]}  b5 {[%clk 0:00:07]} 37. g4 {[%clk 0:00:50]}  hxg4 {[%clk 0:00:06]} 38. fxg4 {[%clk 0:00:51]}  a5 {[%clk 0:00:06]} 39. g5 {[%clk 0:00:48]}  b4 {[%clk 0:00:06]} 40. cxb4 {[%clk 0:00:48]}  axb4 {[%clk 0:00:07]} 41. d5+ {[%clk 0:00:45]}  Ke7 {[%clk 0:00:06]} 42. Ke5 {[%clk 0:00:42]}  Nf7+ {[%clk 0:00:05]} 43. Kf5 {[%clk 0:00:39]}  Nd6+ {[%clk 0:00:04]} 44. Kf4 {[%clk 0:00:38]}  Kf7 {[%clk 0:00:03]} 45. Ke5 {[%clk 0:00:35]}  Nb5 {[%clk 0:00:02]} 46. d6 {[%clk 0:00:35]}  Nxd6 {[%clk 0:00:01]} 47. Kxd6 {[%clk 0:00:35]}  Kg6 {[%clk 0:00:02]} 48. Kc5 {[%clk 0:00:35]}  Kxg5 {[%clk 0:00:03]} 49. Kxb4 {[%clk 0:00:35]} 1-0


[Site "https://www.chess.com"]

[Event "Titled Tuesday Blitz June 6 Late 2023"]
[White "D`Arruda, Ricardo D."]
[Black "benny_aizenberg"]
[WhiteFideId "100692"]
[WhiteElo "2531"]
[BlackElo "2718"]
[Result "1/2-1/2"]
[Round "3"]
[TimeControl "180+2"]
[Date "2023.06.07"]
[WhiteClock "0:00:31"]
[BlackClock "0:00:05"]
[Board "47"]

1. d4 {[%clk 0:02:59]}  Nf6 {[%clk 0:02:58]} 2. Nf3 {[%clk 0:02:59]}  c5 {[%clk 0:02:55]} 3. d5 {[%clk 0:02:59]}  b5 {[%clk 0:02:52]} 4. c4 {[%clk 0:02:56]}  g6 {[%clk 0:02:44]} 5. a4 {[%clk 0:02:54]}  bxc4 {[%clk 0:02:42]} 6. Nc3 {[%clk 0:02:53]}  Bg7 {[%clk 0:02:35]} 7. e4 {[%clk 0:02:53]}  d6 {[%clk 0:02:32]} 8. Bxc4 {[%clk 0:02:52]}  O-O {[%clk 0:02:30]} 9. O-O {[%clk 0:02:52]}  Nbd7 {[%clk 0:02:29]} 10. Re1 {[%clk 0:02:51]}  Rb8 {[%clk 0:02:27]} 11. Ra2 {[%clk 0:02:43]}  Qa5 {[%clk 0:02:22]} 12. Bd2 {[%clk 0:02:40]}  Qb6 {[%clk 0:02:12]} 13. a5 {[%clk 0:02:35]}  Qd8 {[%clk 0:02:11]} 14. h3 {[%clk 0:02:29]}  Rb4 {[%clk 0:02:02]} 15. b3 {[%clk 0:02:29]}  Rb8 {[%clk 0:01:54]} 16. Nb5 {[%clk 0:02:12]}  Ra8 {[%clk 0:01:48]} 17. Qc1 {[%clk 0:02:04]}  a6 {[%clk 0:01:40]} 18. Nc3 {[%clk 0:02:04]}  Ne8 {[%clk 0:01:39]} 19. Bh6 {[%clk 0:02:04]}  Bb7 {[%clk 0:01:35]} 20. Bxg7 {[%clk 0:01:57]}  Kxg7 {[%clk 0:01:34]} 21. e5 {[%clk 0:01:56]}  dxe5 {[%clk 0:01:32]} 22. Nxe5 {[%clk 0:01:57]}  Nxe5 {[%clk 0:01:33]} 23. Rxe5 {[%clk 0:01:58]}  Nd6 {[%clk 0:01:33]} 24. Rae2 {[%clk 0:01:58]}  Nf5 {[%clk 0:01:30]} 25. Na4 {[%clk 0:01:42]}  Qd6 {[%clk 0:01:28]} 26. Qc3 {[%clk 0:01:38]}  Kg8 {[%clk 0:01:24]} 27. Re1 {[%clk 0:01:33]}  Rfe8 {[%clk 0:01:17]} 28. f4 {[%clk 0:01:30]}  Rac8 {[%clk 0:01:12]} 29. Nb6 {[%clk 0:01:30]}  Rc7 {[%clk 0:01:11]} 30. Qf3 {[%clk 0:01:21]}  Nd4 {[%clk 0:01:07]} 31. Qf2 {[%clk 0:01:20]}  Bc8 {[%clk 0:00:55]} 32. g4 {[%clk 0:01:19]}  Kf8 {[%clk 0:00:46]} 33. Kg2 {[%clk 0:01:19]}  Qf6 {[%clk 0:00:44]} 34. b4 {[%clk 0:01:09]}  Qd6 {[%clk 0:00:37]} 35. bxc5 {[%clk 0:01:07]}  Qxc5 {[%clk 0:00:37]} 36. d6 {[%clk 0:01:03]}  Qxd6 {[%clk 0:00:35]} 37. Nxc8 {[%clk 0:01:02]}  Rexc8 {[%clk 0:00:26]} 38. Rd5 {[%clk 0:01:03]}  Qxd5+ {[%clk 0:00:27]} 39. Bxd5 {[%clk 0:01:02]}  Rc2 {[%clk 0:00:27]} 40. Rd1 {[%clk 0:00:56]}  Rxf2+ {[%clk 0:00:25]} 41. Kxf2 {[%clk 0:00:57]}  Nc6 {[%clk 0:00:23]} 42. Rc1 {[%clk 0:00:55]}  Na7 {[%clk 0:00:16]} 43. Rxc8+ {[%clk 0:00:56]}  Nxc8 {[%clk 0:00:17]} 44. Bb7 {[%clk 0:00:56]}  Nd6 {[%clk 0:00:18]} 45. Bxa6 {[%clk 0:00:57]}  Ke8 {[%clk 0:00:18]} 46. Bd3 {[%clk 0:00:56]}  Kd7 {[%clk 0:00:18]} 47. Ke3 {[%clk 0:00:56]}  Kc6 {[%clk 0:00:17]} 48. Kd4 {[%clk 0:00:57]}  f6 {[%clk 0:00:18]} 49. g5 {[%clk 0:00:56]}  Nf7 {[%clk 0:00:16]} 50. gxf6 {[%clk 0:00:55]}  exf6 {[%clk 0:00:17]} 51. Bc4 {[%clk 0:00:54]}  Nd6 {[%clk 0:00:16]} 52. Bg8 {[%clk 0:00:53]}  h6 {[%clk 0:00:14]} 53. Bh7 {[%clk 0:00:50]}  g5 {[%clk 0:00:15]} 54. fxg5 {[%clk 0:00:50]}  hxg5 {[%clk 0:00:14]} 55. Bd3 {[%clk 0:00:51]}  Nf7 {[%clk 0:00:11]} 56. Bc4 {[%clk 0:00:47]}  Ne5 {[%clk 0:00:11]} 57. Be2 {[%clk 0:00:47]}  Ng6 {[%clk 0:00:11]} 58. Ke4 {[%clk 0:00:46]}  Nf4 {[%clk 0:00:10]} 59. Bf1 {[%clk 0:00:47]}  Nxh3 {[%clk 0:00:08]} 60. a6 {[%clk 0:00:44]}  Kb6 {[%clk 0:00:08]} 61. Kf5 {[%clk 0:00:42]}  Nf2 {[%clk 0:00:07]} 62. Kxf6 {[%clk 0:00:42]}  g4 {[%clk 0:00:07]} 63. Kf5 {[%clk 0:00:41]}  Nd1 {[%clk 0:00:07]} 64. Kf4 {[%clk 0:00:39]}  g3 {[%clk 0:00:07]} 65. Kxg3 {[%clk 0:00:38]}  Ne3 {[%clk 0:00:07]} 66. Be2 {[%clk 0:00:38]}  Nd5 {[%clk 0:00:07]} 67. Kf3 {[%clk 0:00:38]}  Nb4 {[%clk 0:00:08]} 68. Ke3 {[%clk 0:00:38]}  Nc6 {[%clk 0:00:06]} 69. Bf3 {[%clk 0:00:32]}  Nb8 {[%clk 0:00:05]} 70. Bb7 {[%clk 0:00:31]}  Nxa6 {[%clk 0:00:05]} 1/2-1/2


[Site "https://www.chess.com"]